bitfinex/quotes_BTCUSD_20240715
["timestamp","ask_amount","ask_price","bid_price","bid_amount"]
[1721034839177,0.143643,62656.0,62655.0,0.2]
[1721034839178,0.718207,62656.0,62655.0,0.2]
[1721034839816,0.718207,62656.0,62655.0,0.200913]
[1721034840554,0.87732851,62656.0,62655.0,0.200913]
[1721034840962,0.75732851,62656.0,62655.0,0.200913]
[1721034841363,0.75742171,62656.0,62655.0,0.200913]
[1721034841520,0.75842171,62656.0,62655.0,0.207913]
[1721034841861,0.7594213,62656.0,62655.0,0.207913]
[1721034841999,0.720207,62656.0,62655.0,0.207913]
[1721034842205,0.718207,62656.0,62655.0,0.200913]
[1721034842412,0.71901494,62656.0,62655.0,0.200913]
[1721034842893,0.287267,62660.0,62655.0,0.36303091]
[1721034843052,0.143639,62657.0,62656.0,0.16211791]
[1721034843219,0.18281273,62657.0,62656.0,0.16211791]
[1721034843992,0.03917373,62657.0,62656.0,0.48696603]
[1721034844322,0.143635,62659.0,62656.0,0.28696603]
[1721034844465,0.143635,62659.0,62656.0,0.2901577]
[1721034844671,0.143635,62659.0,62656.0,0.28696603]
[1721034844925,0.143633,62660.0,62656.0,0.48696603]
[1721034845127,0.14669753,62659.0,62656.0,0.28696603]
[1721034845331,0.00306353,62659.0,62656.0,0.28696603]
[1721034845670,0.143635,62659.0,62656.0,0.21510536]
[1721034845875,0.143635,62659.0,62656.0,0.21191365]
[1721034846030,0.431917,62657.0,62656.0,0.04379574]
[1721034846442,0.431917,62657.0,62656.0,0.05079574]
[1721034846443,0.718195,62657.0,62656.0,0.05079574]
[1721034847558,0.001,62657.0,62656.0,0.29396603]
[1721034847780,0.001,62657.0,62656.0,0.28696603]
[1721034848205,0.002,62657.0,62656.0,0.29396603]
[1721034848478,0.145639,62657.0,62656.0,0.21291365]
[1721034848837,0.432917,62657.0,62656.0,0.05079574]
[1721034849043,0.002,62657.0,62656.0,1.50548941]
[1721034849227,0.002,62657.0,62656.0,3.95146603]
[1721034849902,0.002,62657.0,62656.0,4.15146603]
[1721034850090,0.002,62657.0,62656.0,4.29510703]
[1721034850672,0.002,62657.0,62656.0,3.83941365]
[1721034852143,0.002,62657.0,62656.0,3.76311365]
[1721034854418,0.002,62657.0,62656.0,5.76383703]
[1721034854618,0.002,62657.0,62656.0,4.52361365]
[1721034855354,0.002,62657.0,62656.0,4.72361365]
[1721034855531,0.002,62657.0,62656.0,4.52361365]
[1721034857775,0.002,62657.0,62656.0,4.72361365]
[1721034857975,0.002,62657.0,62656.0,3.96311365]
[1721034858943,0.002,62657.0,62656.0,5.57925303]
[1721034859251,0.002,62657.0,62656.0,3.95076603]
[1721034859458,0.002,62657.0,62656.0,4.05076603]
[1721034859970,0.002,62657.0,62656.0,3.95076603]
[1721034860102,0.001,62657.0,62656.0,4.05076603]
[1721034860315,0.00306353,62664.0,62658.0,0.1]
[1721034860520,0.00306353,62664.0,62659.0,0.16211791]
[1721034860720,0.143621,62665.0,62660.0,0.1]
[1721034860924,0.143621,62665.0,62662.0,1.30481234]
[1721034861282,0.143621,62665.0,62663.0,0.14379574]
[1721034861562,0.00083,62667.0,62664.0,0.36211791]
[1721034862448,0.09193,62667.0,62664.0,0.36211791]
[1721034862855,0.09193,62667.0,62664.0,0.36711791]
[1721034863514,0.00083,62667.0,62664.0,0.36711791]
[1721034864507,0.00083,62667.0,62665.0,1.07722338]
[1721034864709,0.00083,62667.0,62666.0,0.16211791]
[1721034866287,0.00183,62667.0,62666.0,0.16611791]
[1721034867294,0.00183,62667.0,62666.0,0.17211791]
[1721034867771,0.00183,62667.0,62666.0,0.17530908]
[1721034867993,0.00183,62667.0,62666.0,0.46321791]
[1721034869099,0.00183,62667.0,62666.0,0.37161791]
[1721034869460,0.00183,62667.0,62666.0,1.28970991]
[1721034869664,0.00183,62667.0,62666.0,1.48970991]
[1721034869799,0.00183,62667.0,62666.0,1.53749478]
[1721034870171,0.00183,62667.0,62666.0,1.48970991]
[1721034870378,0.00183,62667.0,62666.0,1.53748249]
[1721034871352,0.00183,62667.0,62666.0,1.48970991]
[1721034871561,0.00183,62667.0,62666.0,1.53748249]
[1721034871791,0.00183,62667.0,62666.0,4.83300729]
[1721034872135,0.00183,62667.0,62666.0,6.05815335]
[1721034872364,4e-05,62685.0,62677.0,1.217965]
[1721034872621,4e-05,62685.0,62677.0,6.80154337]
[1721034872863,4e-05,62685.0,62677.0,7.12074337]
[1721034873089,4e-05,62685.0,62677.0,9.57425275]
[1721034873340,4e-05,62685.0,62677.0,8.49702937]
[1721034873571,4e-05,62685.0,62677.0,8.56862666]
[1721034873816,0.00187,62678.0,62677.0,8.57362666]
[1721034874061,0.00187,62678.0,62677.0,11.73859937]
[1721034874315,0.0498618,62693.0,62692.0,0.743558]
[1721034874544,0.00087,62698.0,62692.0,0.743558]
[1721034874545,0.00087,62698.0,62697.0,0.430642]
[1721034874789,0.00087,62698.0,62697.0,0.69275991]
[1721034875046,0.00087,62698.0,62697.0,1.27985491]
[1721034875488,0.00087,62698.0,62697.0,1.96994991]
[1721034875736,0.00087,62698.0,62697.0,2.13804991]
[1721034876178,0.00087,62698.0,62697.0,2.14404991]
[1721034876625,0.00087,62698.0,62697.0,2.14904991]
[1721034876828,0.00087,62698.0,62697.0,2.14404991]
[1721034877027,0.00087,62698.0,62697.0,2.14904991]
[1721034877227,0.00087,62698.0,62697.0,2.14304991]
[1721034877703,0.00087,62698.0,62697.0,2.14904991]
[1721034879509,0.00087,62698.0,62697.0,3.93797329]
[1721034879690,0.04974205,62710.0,62709.0,0.2]
[1721034879888,0.04974205,62710.0,62709.0,5.60641495]
[1721034880095,0.0626,62714.0,62709.0,5.92561495]
[1721034880349,0.00834,62720.0,62710.0,1.50184129]
[1721034880547,0.00834,62720.0,62714.0,0.343508]
[1721034880885,0.00834,62720.0,62714.0,0.60881461]
[1721034881424,0.00834,62720.0,62714.0,0.60562591]
[1721034881866,0.00834,62720.0,62714.0,0.89264291]
[1721034882232,0.00834,62720.0,62714.0,1.60014291]
[1721034882484,0.00834,62720.0,62714.0,1.17965991]
[1721034882794,0.00834,62720.0,62714.0,1.54615991]
[1721034883450,0.00834,62720.0,62714.0,2.01422929]
[1721034883608,0.00834,62720.0,62714.0,2.34652929]
[1721034883811,0.00834,62720.0,62714.0,1.97845991]
[1721034884017,0.00834,62720.0,62714.0,1.15914291]
[1721034884219,0.00834,62720.0,62714.0,1.64615991]
[1721034884420,0.00834,62720.0,62714.0,1.65115991]
[1721034884823,0.00834,62720.0,62714.0,1.64515991]
[1721034885019,0.00834,62720.0,62714.0,1.75115991]
[1721034885206,0.00834,62720.0,62714.0,3.38888329]
[1721034885407,0.00834,62720.0,62714.0,1.39065991]
[1721034885633,0.00834,62720.0,62714.0,1.67767691]
[1721034885831,0.00834,62720.0,62714.0,1.67267691]
[1721034886225,0.00834,62720.0,62714.0,2.07307691]
[1721034886432,0.00834,62720.0,62719.0,1.217485]
[1721034886631,0.00834,62720.0,62719.0,1.83739265]
[1721034887378,0.00834,62730.0,62719.0,1.83739265]
[1721034887379,0.16,62751.0,62728.0,0.2]
[1721034887495,0.16,62751.0,62730.0,0.04379574]
[1721034887496,0.14346,62735.0,62730.0,0.04379574]
[1721034887694,0.04931892,62732.0,62730.0,0.20591365]
[1721034887907,0.14346,62735.0,62730.0,0.20591365]
[1721034888147,0.406918,62736.0,62730.0,0.20591365]
[1721034888341,0.143466,62733.0,62730.0,0.20591365]
[1721034888740,0.00835,62749.0,62731.0,0.24291791]
[1721034889020,0.143454,62738.0,62736.0,0.027]
[1721034889440,0.55435279,62737.0,62736.0,0.027]
[1721034889664,0.84126479,62737.0,62736.0,0.027]
[1721034890262,0.86156479,62737.0,62736.0,0.027]
[1721034890564,0.85758,62737.0,62736.0,0.027]
[1721034890759,0.85758,62737.0,62736.0,0.028]
[1721034890976,0.283756,62737.0,62736.0,0.028]
[1721034891179,0.283756,62737.0,62736.0,0.027]
[1721034891530,0.1403,62737.0,62736.0,0.027]
[1721034891735,0.1403,62737.0,62736.0,0.18911791]
[1721034891947,0.1403,62737.0,62736.0,0.19311791]
[1721034892308,0.0608,62737.0,62736.0,0.19311791]
[1721034892510,0.0608,62737.0,62736.0,0.19511791]
[1721034894167,0.0608,62737.0,62736.0,0.39511791]
[1721034894409,0.08334,62741.0,62736.0,0.39511791]
[1721034894527,0.08334,62741.0,62738.0,0.04379574]
[1721034894727,0.08334,62741.0,62739.0,0.16211791]
[1721034894929,0.226787,62741.0,62739.0,0.16211791]
[1721034895671,0.430353,62739.0,62738.0,0.04379574]
[1721034895888,0.143451,62739.0,62738.0,0.04379574]
[1721034896342,0.430353,62739.0,62738.0,0.04379574]
[1721034897328,0.491353,62739.0,62738.0,0.04779574]
[1721034898186,0.204451,62739.0,62738.0,0.04779574]
[1721034898387,0.061,62739.0,62738.0,0.05379574]
[1721034898921,0.08334,62741.0,62738.0,0.05379574]
[1721034898922,0.226788,62741.0,62738.0,0.05379574]
[1721034899508,0.14345,62740.0,62738.0,0.05379574]
[1721034899713,0.08334,62741.0,62739.0,0.16211791]
[1721034901844,0.08334,62741.0,62739.0,0.16730978]
[1721034902292,0.00834,62741.0,62740.0,0.343449]
[1721034902493,0.0762,62751.0,62742.0,0.0607]
[1721034902702,0.12,62748.0,62743.0,0.16211791]
[1721034902903,0.12,62748.0,62739.0,0.00819187]
[1721034902904,0.402349,62740.0,62739.0,0.00819187]
[1721034903108,1.13866491,62740.0,62739.0,0.00819187]
[1721034903312,0.1441,62725.0,62714.0,0.1]
[1721034903528,0.1441,62725.0,62724.0,0.4863143]
[1721034903739,0.12,62727.0,62718.0,0.2]
[1721034903941,0.143497,62719.0,62718.0,0.2]
[1721034904788,0.286985,62721.0,62718.0,0.2]
[1721034904987,0.143497,62719.0,62718.0,0.2]
[1721034905346,0.143497,62719.0,62718.0,0.3]
[1721034905549,0.12,62730.0,62718.0,0.46211791]
[1721034905762,0.1,62745.0,62724.0,0.004]
[1721034905763,0.143485,62725.0,62724.0,0.004]
[1721034906115,0.143485,62725.0,62722.0,0.08105238]
[1721034906330,0.143463,62734.0,62725.0,0.2]
[1721034906544,0.143466,62733.0,62726.0,0.16211791]
[1721034906752,0.286921,62735.0,62726.0,0.1653061]
[1721034906753,0.430383,62735.0,62726.0,0.1653061]
[1721034906968,0.286921,62735.0,62726.0,0.1653061]
[1721034907173,0.15392604,62739.0,62733.0,0.343464]
[1721034907382,0.15392604,62739.0,62738.0,0.08105238]
[1721034907584,0.15392604,62739.0,62738.0,0.16211791]
[1721034907993,0.15392604,62739.0,62738.0,0.69247791]
[1721034908204,0.15392604,62739.0,62738.0,0.89247791]
[1721034908410,0.15392604,62739.0,62738.0,1.02482758]
[1721034909178,0.15392604,62739.0,62738.0,0.82482154]
[1721034909580,0.15392604,62739.0,62738.0,0.82882154]
[1721034909982,0.15392604,62739.0,62738.0,1.31572854]
[1721034910386,0.15792604,62739.0,62738.0,1.31572886]
[1721034910795,0.15792604,62739.0,62738.0,2.25065684]
[1721034910974,0.15392604,62739.0,62738.0,2.27431318]
[1721034911176,0.15392604,62739.0,62738.0,2.22093148]
[1721034911388,0.15392604,62739.0,62738.0,3.42118848]
[1721034911590,0.00835,62749.0,62748.0,1.455152]
[1721034911703,0.143386,62768.0,62759.0,0.2]
[1721034911908,0.00237743,62767.0,62760.0,0.26211791]
[1721034912110,0.00237743,62767.0,62760.0,0.16211791]
[1721034912539,0.14576443,62767.0,62760.0,0.16211791]
[1721034913601,0.14576443,62767.0,62760.0,0.16611791]
[1721034913961,0.14576443,62767.0,62760.0,0.16211791]
[1721034914501,0.00237743,62767.0,62760.0,0.21943834]
[1721034915272,0.00237743,62767.0,62761.0,0.04732043]
[1721034915478,0.00237743,62767.0,62761.0,0.20943834]
[1721034915682,0.00237743,62767.0,62761.0,0.20948945]
[1721034916092,0.145383,62769.0,62761.0,0.36211791]
[1721034916303,0.002,62769.0,62762.0,0.04737154]
[1721034916900,0.145383,62769.0,62763.0,0.04737154]
[1721034917406,0.002,62769.0,62767.0,0.08105238]
[1721034917602,0.002,62769.0,62766.0,0.04737154]
[1721034917854,0.002,62769.0,62767.0,0.04737154]
[1721034918395,0.002,62769.0,62768.0,0.04742276]
[1721034918796,0.002,62769.0,62766.0,0.20954067]
[1721034919008,0.002,62769.0,62765.0,0.04742276]
[1721034919009,0.550168,62766.0,62765.0,0.04742276]
[1721034919199,0.14377743,62768.0,62765.0,0.30550891]
[1721034919200,0.1414,62768.0,62765.0,0.30550891]
[1721034919483,1e-08,62769.0,62766.0,0.16211791]
[1721034919903,1e-08,62769.0,62766.0,0.20954067]
[1721034920075,1e-08,62769.0,62767.0,0.006]
[1721034920720,1e-08,62769.0,62767.0,0.24317029]
[1721034921040,1e-08,62769.0,62768.0,0.99227291]
[1721034921066,1e-08,62769.0,62768.0,0.36211791]
[1721034921655,1e-08,62769.0,62768.0,0.57665825]
[1721034922025,0.01071743,62777.0,62770.0,0.143379]
[1721034922026,0.00834,62777.0,62770.0,0.143379]
[1721034922245,0.00834,62777.0,62771.0,0.16211791]
[1721034922875,0.00834,62777.0,62774.0,0.08105238]
[1721034923081,0.00834,62777.0,62776.0,0.343366]
[1721034923298,0.00834,62777.0,62776.0,0.36211791]
[1721034924178,0.01334,62777.0,62776.0,0.50548391]
[1721034924425,0.01334,62777.0,62776.0,0.36211791]
[1721034925106,0.01334,62777.0,62776.0,0.36311791]
[1721034925494,0.01334,62777.0,62776.0,0.201]
[1721034925495,0.156704,62777.0,62776.0,0.201]
[1721034925645,0.01334,62777.0,62776.0,0.201]
[1721034925845,0.156704,62777.0,62776.0,0.201]
[1721034926078,0.56581043,62777.0,62776.0,0.001]
[1721034926715,1.13926843,62777.0,62776.0,0.001]
[1721034926990,1.13926843,62777.0,62764.0,0.04948364]
[1721034926991,0.143392,62765.0,62764.0,0.04948364]
[1721034927141,0.83696,62765.0,62764.0,0.04948364]
[1721034927363,0.550182,62764.0,62763.0,0.4771]
[1721034927576,0.550182,62764.0,62753.0,0.04741033]
[1721034927577,0.143414,62756.0,62753.0,0.2]
[1721034927755,0.40681,62760.0,62754.0,0.16211791]
[1721034927756,0.286815,62759.0,62754.0,0.16211791]
[1721034927960,0.14341,62757.0,62754.0,0.16211791]
[1721034928522,0.143404,62760.0,62754.0,0.16211791]
[1721034928756,0.0752,62768.0,62760.0,0.2]
[1721034928926,0.347751,62773.0,62761.0,0.24317029]
[1721034928927,0.00237743,62772.0,62761.0,0.24317029]
[1721034929123,0.143383,62769.0,62761.0,0.24635676]
[1721034929328,0.00834,62777.0,62768.0,0.08105238]
[1721034929564,0.12,62774.0,62769.0,0.36211791]
[1721034929760,0.28911243,62776.0,62769.0,0.2]
[1721034929761,0.430141,62770.0,62769.0,0.2]
[1721034929942,0.143377,62772.0,62764.0,0.46211791]
[1721034930151,0.143372,62774.0,62765.0,0.30550891]
[1721034930353,0.14337,62775.0,62766.0,0.143389]
[1721034930500,0.143375,62773.0,62767.0,0.16530392]
[1721034930702,0.143376,62772.0,62767.0,0.16530392]
[1721034930906,0.286748,62773.0,62767.0,0.16211791]
[1721034931107,0.12,62774.0,62767.0,0.16211791]
[1721034931326,0.143375,62773.0,62767.0,0.16211791]
[1721034931753,0.143375,62773.0,62767.0,0.16530395]
[1721034931952,0.143375,62773.0,62767.0,0.16930395]
[1721034932116,0.143371,62774.0,62767.0,0.16530395]
[1721034932316,0.12,62774.0,62767.0,0.17030393]
[1721034932524,0.143385,62768.0,62767.0,0.16711791]
[1721034932736,0.143384,62769.0,62767.0,0.16711791]
[1721034933132,0.981125,62768.0,62767.0,0.005]
[1721034933346,1.27027243,62768.0,62767.0,0.005]
[1721034933544,1.29327243,62768.0,62767.0,0.005]
[1721034933775,1.29327243,62768.0,62767.0,0.004]
[1721034933970,0.143403,62760.0,62759.0,0.04943924]
[1721034934406,0.143406,62759.0,62754.0,0.2]
[1721034934610,0.286805,62761.0,62755.0,0.26211791]
[1721034934780,0.143412,62756.0,62755.0,0.26211791]
[1721034934958,0.14341,62758.0,62755.0,0.26211791]
[1721034935610,0.430224,62758.0,62755.0,0.26211791]
[1721034935785,0.143408,62758.0,62755.0,0.26711791]
[1721034936609,0.14341,62757.0,62755.0,0.26711791]
[1721034936805,0.143412,62756.0,62755.0,0.26711791]
[1721034937159,0.143412,62756.0,62755.0,0.26211791]
[1721034937385,0.14341,62757.0,62755.0,0.26611791]
[1721034937600,0.14341,62757.0,62755.0,0.26711791]
[1721034937799,0.430237,62756.0,62755.0,0.26711791]
[1721034937947,0.430237,62756.0,62755.0,0.26611791]
[1721034938150,0.143412,62756.0,62755.0,0.26611791]
[1721034938315,0.143412,62756.0,62755.0,0.27111791]
[1721034938511,0.430237,62756.0,62755.0,0.27111791]
[1721034938714,0.430237,62756.0,62755.0,0.26711791]
[1721034938939,0.143412,62756.0,62755.0,0.26711791]
[1721034939433,0.12,62763.0,62755.0,0.26803091]
[1721034939434,0.286794,62763.0,62755.0,0.26803091]
[1721034939655,0.286794,62763.0,62755.0,0.27203091]
[1721034939989,0.143394,62764.0,62760.0,0.08105238]
[1721034940235,0.143394,62764.0,62755.0,0.41863072]
[1721034940474,0.143392,62765.0,62755.0,0.41863072]
[1721034940673,0.12,62771.0,62755.0,0.41863072]
[1721034940674,0.143377,62772.0,62763.0,0.143396]
[1721034940876,0.14338,62771.0,62764.0,0.16211791]
[1721034941087,0.14338,62771.0,62764.0,0.16530411]
[1721034942035,0.14338,62771.0,62764.0,0.17030411]
[1721034942259,0.14338,62771.0,62764.0,0.17430411]
[1721034942458,0.14338,62771.0,62764.0,0.17030411]
[1721034942670,0.286762,62770.0,62764.0,0.16711791]
[1721034942869,0.143383,62769.0,62764.0,0.16711791]
[1721034943592,0.286753,62772.0,62764.0,0.16211791]
[1721034943867,0.286753,62772.0,62764.0,0.16711791]
[1721034944074,0.286753,62772.0,62764.0,0.009]
[1721034944075,0.143392,62765.0,62764.0,0.009]
[1721034944282,0.143396,62763.0,62762.0,0.2]
[1721034944484,0.406784,62765.0,62762.0,0.46211791]
[1721034944485,0.430178,62765.0,62762.0,0.46211791]
[1721034944690,0.430178,62765.0,62764.0,0.009]
[1721034944906,0.902162,62765.0,62764.0,0.005]
[1721034945122,0.430182,62764.0,62763.0,0.1]
[1721034945318,0.83697,62764.0,62763.0,0.1]
[1721034945927,0.430182,62764.0,62763.0,0.1]
[1721034947384,0.143394,62764.0,62763.0,0.1]
[1721034947725,0.286761,62770.0,62763.0,0.26611791]
[1721034947726,0.143388,62767.0,62763.0,0.26611791]
[1721034947861,0.14339,62766.0,62763.0,0.26711791]
[1721034948288,0.14339,62766.0,62763.0,0.27111791]
[1721034948494,0.14339,62766.0,62763.0,0.26711791]
[1721034948656,0.14339,62766.0,62763.0,0.26211791]
[1721034949054,0.14339,62766.0,62763.0,0.34441791]
[1721034949279,0.28677,62768.0,62763.0,0.34441791]
[1721034949280,0.143387,62768.0,62763.0,0.34441791]
[1721034949647,0.287571,62775.0,62766.0,0.143389]
[1721034949648,0.00083,62775.0,62766.0,0.143389]
[1721034949821,0.143372,62774.0,62767.0,0.26211791]
[1721034951706,0.143372,62774.0,62767.0,0.26711791]
[1721034951906,0.14657643,62775.0,62767.0,0.27111791]
[1721034952111,0.00320743,62775.0,62767.0,0.27111791]
[1721034952307,0.00083,62775.0,62767.0,0.41450291]
[1721034952665,0.143371,62774.0,62767.0,0.27111791]
[1721034952903,0.286753,62772.0,62767.0,0.109]
[1721034953107,0.286753,62772.0,62767.0,0.009]
[1721034953108,0.143385,62768.0,62767.0,0.009]
[1721034953239,0.55253243,62768.0,62767.0,0.009]
[1721034953849,0.55253243,62768.0,62767.0,0.004]
[1721034954071,0.143385,62768.0,62767.0,0.009]
[1721034954681,0.143385,62768.0,62763.0,0.1]
[1721034954880,0.286761,62770.0,62763.0,0.26211791]
[1721034955079,0.430142,62770.0,62767.0,0.004544]
[1721034955506,0.21034,62777.0,62770.0,0.2]
[1721034955758,0.263394,62764.0,62761.0,0.09673314]
[1721034956004,0.0639,62772.0,62761.0,0.04904725]
[1721034956005,0.263398,62762.0,62761.0,0.04904725]
[1721034956220,0.06,62760.0,62755.0,0.100913]
[1721034956421,0.203404,62760.0,62756.0,0.16211791]
[1721034956560,0.00237743,62760.0,62757.0,0.1]
[1721034957831,0.00237743,62760.0,62757.0,0.105]
[1721034957996,0.14578143,62760.0,62757.0,0.105]
[1721034958191,0.00237743,62760.0,62757.0,0.105]
[1721034958618,0.00237743,62760.0,62757.0,0.108]
[1721034959970,0.143398,62762.0,62757.0,0.108]
[1721034960597,0.12,62760.0,62757.0,0.108]
[1721034960723,0.143401,62761.0,62757.0,0.108]
[1721034960929,0.14319525,62767.0,62758.0,0.38822491]
[1721034961134,0.143388,62767.0,62760.0,0.0606]
[1721034961385,0.143383,62769.0,62761.0,0.16211791]
[1721034961600,0.143383,62769.0,62762.0,0.1]
[1721034961823,0.143383,62769.0,62762.0,0.26211791]
[1721034962257,0.286751,62773.0,62763.0,0.16211791]
[1721034962258,0.406751,62773.0,62763.0,0.16211791]
[1721034962388,0.00237743,62772.0,62763.0,0.16211791]
[1721034962588,0.00237743,62772.0,62764.0,0.143393]
[1721034962794,0.00237743,62772.0,62765.0,0.16211791]
[1721034963207,0.002,62769.0,62765.0,0.16211791]
[1721034963603,0.002,62769.0,62766.0,0.1]
[1721034963805,0.002,62769.0,62766.0,0.26211791]
[1721034964582,0.00237743,62772.0,62766.0,0.26211791]
[1721034965063,0.15175343,62772.0,62766.0,0.26211791]
[1721034965589,0.00837743,62772.0,62766.0,0.26511791]
[1721034965794,0.00837743,62772.0,62766.0,0.27011791]
[1721034965989,0.00083,62775.0,62770.0,0.143379]
[1721034966203,0.00083,62775.0,62769.0,0.066]
[1721034966348,0.00083,62775.0,62769.0,0.37149991]
[1721034966551,0.00083,62775.0,62774.0,0.343371]
[1721034966789,0.00083,62775.0,62774.0,0.36211791]
[1721034967590,0.00083,62775.0,62774.0,0.50548891]
[1721034968373,0.00083,62775.0,62774.0,0.89223091]
[1721034969449,0.00417,62777.0,62776.0,0.430099]
[1721034969653,0.00417,62777.0,62776.0,0.69221691]
[1721034969856,0.00417,62777.0,62776.0,0.97894991]
[1721034970286,0.00417,62777.0,62776.0,0.69221691]
[1721034971865,0.00417,62777.0,62776.0,0.40548391]
[1721034972095,0.00417,62777.0,62764.0,0.2]
[1721034972096,0.06,62766.0,62764.0,0.2]
[1721034972293,0.324096,62763.0,62757.0,0.937]
[1721034972506,0.143405,62759.0,62755.0,0.000913]
[1721034972721,0.46987043,62763.0,62755.0,0.000913]
[1721034972722,0.837062,62756.0,62755.0,0.000913]
[1721034972925,1.29769204,62756.0,62755.0,0.000913]
[1721034973150,1.26069204,62756.0,62755.0,0.000913]
[1721034973505,0.97386704,62756.0,62755.0,0.000913]
[1721034974855,0.942362,62756.0,62755.0,0.000913]
[1721034975060,0.97516892,62756.0,62755.0,0.000913]
[1721034975285,1.26199392,62756.0,62755.0,0.000913]
[1721034976261,1.32199392,62756.0,62755.0,0.000913]
[1721034977197,1.32799392,62756.0,62755.0,0.000913]
[1721034977368,1.32199392,62756.0,62755.0,0.000913]
[1721034977775,1.26199392,62756.0,62755.0,0.000913]
[1721034978179,1.26179457,62756.0,62755.0,0.000913]
[1721034978588,1.32179607,62756.0,62755.0,0.000913]
[1721034978791,1.39239607,62756.0,62755.0,0.001913]
[1721034978993,1.84133898,62756.0,62755.0,0.001913]
[1721034979155,2.14133898,62756.0,62755.0,0.001913]
[1721034979379,0.12,62728.0,62725.0,0.2]
[1721034979581,0.286952,62729.0,62725.0,0.2]
[1721034979582,0.263481,62726.0,62725.0,0.2]
[1721034979783,0.286952,62729.0,62725.0,0.2]
[1721034979784,0.12237743,62728.0,62725.0,0.2]
[1721034979988,0.143481,62726.0,62725.0,0.2]
[1721034980677,0.406976,62723.0,62722.0,0.67872338]
[1721034980898,0.430464,62723.0,62722.0,0.67872338]
[1721034981107,0.12,62728.0,62722.0,0.84084129]
[1721034981322,0.143476,62729.0,62726.0,0.08105238]
[1721034982174,0.143477,62728.0,62726.0,0.28105238]
[1721034982371,0.263477,62728.0,62726.0,0.2]
[1721034982573,0.143477,62728.0,62726.0,0.2]
[1721034983004,0.143477,62728.0,62726.0,0.202]
[1721034983218,0.14685243,62729.0,62726.0,0.202]
[1721034983626,0.001,62728.0,62727.0,0.22511791]
[1721034983844,0.001,62728.0,62727.0,0.36859591]
[1721034984084,0.001,62728.0,62727.0,1.24250991]
[1721034984648,0.001,62728.0,62727.0,1.34250991]
[1721034985131,0.001,62728.0,62727.0,1.97306691]
[1721034985363,0.00544096,62754.0,62749.0,0.2]
[1721034985597,0.143421,62753.0,62749.0,0.2]
[1721034985843,0.143422,62752.0,62749.0,0.2]
[1721034986319,0.286816,62758.0,62749.0,0.36211791]
[1721034986563,0.12,62756.0,62749.0,0.36211791]
[1721034986797,0.28919743,62757.0,62749.0,0.203]
[1721034986798,0.143426,62750.0,62749.0,0.203]
[1721034987033,0.263426,62750.0,62749.0,0.2]
[1721034987275,0.143424,62751.0,62749.0,0.2]
[1721034987535,0.004,62752.0,62749.0,0.2]
[1721034987776,0.143424,62751.0,62749.0,0.2]
[1721034988013,0.00306353,62750.0,62749.0,0.2]
[1721034988508,0.011,62752.0,62749.0,0.201]
[1721034988749,0.14885396,62756.0,62749.0,0.36211791]
[1721034989008,0.143416,62755.0,62749.0,0.36211791]
[1721034989238,0.14579343,62755.0,62749.0,0.37211791]
[1721034989510,0.14579343,62755.0,62750.0,0.1]
[1721034990197,0.143416,62755.0,62750.0,0.1]
[1721034990394,0.001,62755.0,62750.0,0.1]
[1721034990824,0.144415,62755.0,62750.0,0.1]
[1721034991040,0.14579643,62754.0,62750.0,0.101]
[1721034991450,0.12,62751.0,62750.0,0.001]
[1721034991656,1.18634543,62751.0,62750.0,0.001]
[1721034991860,0.977732,62741.0,62728.0,0.4863143]
[1721034992066,1.514925,62741.0,62728.0,0.4863143]
[1721034992268,0.490422,62729.0,62728.0,0.4863143]
[1721034992471,0.143476,62728.0,62727.0,0.2]
[1721034992677,0.00237743,62728.0,62719.0,0.2643]
[1721034992882,0.286965,62726.0,62719.0,0.36211791]
[1721034993086,0.12,62721.0,62719.0,0.2]
[1721034993295,0.1402,62723.0,62713.0,1.07813638]
[1721034993296,0.430512,62716.0,62715.0,0.04943563]
[1721034993505,0.430512,62716.0,62713.0,1.07813638]
[1721034993506,0.143508,62714.0,62713.0,0.000913]
[1721034993716,0.430525,62714.0,62713.0,0.000913]
[1721034993920,0.143508,62714.0,62713.0,0.000913]
[1721034994324,0.263508,62714.0,62713.0,0.000913]
[1721034994533,0.143508,62714.0,62713.0,0.000913]
[1721034995290,0.550525,62714.0,62713.0,0.000913]
[1721034995486,0.550525,62714.0,62713.0,0.003913]
[1721034995700,0.143508,62714.0,62713.0,0.003913]
[1721034995909,0.143497,62719.0,62713.0,0.16603091]
[1721034996109,0.00237743,62718.0,62714.0,0.16211791]
[1721034996448,0.00237743,62719.0,62714.0,0.16211791]
[1721034996571,0.143498,62719.0,62714.0,0.16211791]
[1721034997833,0.143498,62719.0,62714.0,0.16311791]
[1721034998267,0.153498,62719.0,62714.0,0.16311791]
[1721034998577,0.143498,62719.0,62714.0,0.16311791]
[1721034998966,0.144498,62719.0,62714.0,0.16311791]
[1721035000377,0.12,62716.0,62714.0,0.16311791]
[1721035000617,0.143506,62715.0,62714.0,0.16311791]
[1721035000763,0.143503,62717.0,62714.0,0.16311791]
[1721035000963,0.143504,62716.0,62714.0,0.16311791]
[1721035001422,0.143504,62716.0,62714.0,0.16211791]
[1721035001747,0.143504,62716.0,62713.0,0.000913]
[1721035001748,0.550525,62714.0,62713.0,0.000913]
[1721035002323,0.430525,62714.0,62713.0,0.000913]
[1721035003327,0.143508,62714.0,62713.0,0.000913]
[1721035003535,0.00237743,62716.0,62713.0,0.000913]
[1721035003738,0.143508,62714.0,62713.0,0.000913]
[1721035003983,0.430525,62714.0,62713.0,0.000913]
[1721035004556,0.143508,62714.0,62713.0,0.000913]
[1721035004707,0.143507,62715.0,62713.0,0.000913]
[1721035004915,0.143507,62715.0,62713.0,0.006913]
[1721035005132,0.143507,62715.0,62713.0,0.010913]
[1721035005799,0.143496,62720.0,62714.0,0.08105238]
[1721035005990,0.143496,62720.0,62713.0,0.16903091]